{"text_format":"1","workbook":"xlsx","n_sheets":1,"sheets":["Лист1"],"not_rendered":{"charts":0,"images":0,"macros":1,"external_links":0,"defined_names":1,"comments":0,"pivot_tables":0},"unopened":[],"bounds":{"document_bytes":16777216,"sheet_cells":100000,"rows_first":2000,"rows_last":500,"rows_between":2000,"halvings":0,"cell_chars":16384,"cell_head_chars":4096},"cells_cut":0,"cells_raw":0,"read":"whole","date_system":"1900"}

{"sheet":"Лист1","index":0,"n_rows":11,"n_cols":13,"rows_kept":11,"cut":false,"hidden":false,"merged":[]}
["Дано:",null,null,null,null,"Требуется:",null,null,"Значение","Атрибут"]
["Категория А","Категория Б","Категория В",null,null,1,"Категория А",null,1,"Категория А",null,{"$f":"saari(Таблица1[#Headers],Таблица1[],COLUMN(A1)-1,ROW(A1))","v":1},{"$f":"saari(Таблица1[#Headers],Таблица1[],COLUMN(B1)-1,ROW(B1))","v":"Категория А"}]
[1,12,4,null,null,2,"Категория А",null,2,"Категория А",null,{"$f":"saari(Таблица1[#Headers],Таблица1[],COLUMN(A2)-1,ROW(A2))","v":2},{"$f":"saari(Таблица1[#Headers],Таблица1[],COLUMN(B2)-1,ROW(B2))","v":"Категория А"}]
[2,13,7,null,null,12,"Категория Б",null,6,"Категория Б",null,{"$f":"saari(Таблица1[#Headers],Таблица1[],COLUMN(A3)-1,ROW(A3))","v":12},{"$f":"saari(Таблица1[#Headers],Таблица1[],COLUMN(B3)-1,ROW(B3))","v":"Категория Б"}]
[null,9,5,null,null,13,"Категория Б",null,9,"Категория Б",null,{"$f":"saari(Таблица1[#Headers],Таблица1[],COLUMN(A4)-1,ROW(A4))","v":13},{"$f":"saari(Таблица1[#Headers],Таблица1[],COLUMN(B4)-1,ROW(B4))","v":"Категория Б"}]
[null,6,null,null,null,9,"Категория Б",null,12,"Категория Б",null,{"$f":"saari(Таблица1[#Headers],Таблица1[],COLUMN(A5)-1,ROW(A5))","v":9},{"$f":"saari(Таблица1[#Headers],Таблица1[],COLUMN(B5)-1,ROW(B5))","v":"Категория Б"}]
[null,null,null,null,null,6,"Категория Б",null,13,"Категория Б",null,{"$f":"saari(Таблица1[#Headers],Таблица1[],COLUMN(A6)-1,ROW(A6))","v":6},{"$f":"saari(Таблица1[#Headers],Таблица1[],COLUMN(B6)-1,ROW(B6))","v":"Категория Б"}]
[null,null,null,null,null,4,"Категория В",null,4,"Категория В",null,{"$f":"saari(Таблица1[#Headers],Таблица1[],COLUMN(A7)-1,ROW(A7))","v":4},{"$f":"saari(Таблица1[#Headers],Таблица1[],COLUMN(B7)-1,ROW(B7))","v":"Категория В"}]
[null,null,null,null,null,7,"Категория В",null,5,"Категория В",null,{"$f":"saari(Таблица1[#Headers],Таблица1[],COLUMN(A8)-1,ROW(A8))","v":7},{"$f":"saari(Таблица1[#Headers],Таблица1[],COLUMN(B8)-1,ROW(B8))","v":"Категория В"}]
[null,null,null,null,null,5,"Категория В",null,7,"Категория В",null,{"$f":"saari(Таблица1[#Headers],Таблица1[],COLUMN(A9)-1,ROW(A9))","v":5},{"$f":"saari(Таблица1[#Headers],Таблица1[],COLUMN(B9)-1,ROW(B9))","v":"Категория В"}]
[null,null,null,null,null,null,null,null,null,null,null,{"$f":"saari(Таблица1[#Headers],Таблица1[],COLUMN(A10)-1,ROW(A10))","v":0},{"$f":"saari(Таблица1[#Headers],Таблица1[],COLUMN(B10)-1,ROW(B10))","v":0}]